Cogmind - Beta 10.2 @@@ ROGUE MODE // 2020.11.06 @ 21:05:34 Player: Ty Result: Destroyed by as-88584 with Assembled Heavy Rifle Performance ------------- Evolutions (1) 500 Regions Visited (4) 800 Robots Destroyed (46) 230 Value Destroyed (794) 794 Prototype IDs (2) 40 Alien Tech Used (0) 0 Bonus (246) 246 TOTAL SCORE: 2610 Bonus ------- Pacifist 200 High Alert Combat Kills 46 Cogmind --------- Core Integrity 0/400 Matter 280/300 Energy 100/100 System Corruption 4% Temperature Cool (0) Movement Core (300) Ox5 Location -9/Mines Parts ------- > --- POWER (1) -------- (None) > --- PROPULSION (2) --- (None) > --- UTILITY (3) ------ Large Storage Unit > --- WEAPON (3) ------- (None) > --- INVENTORY (10) --- Ion Engine Advanced Terrain Scan Processor System Backup Module Peak State ------------ > --- POWER ------------ Reinforced Ion Engine > --- PROPULSION ------- Compact Wheel Armored Wheel > --- UTILITY ---------- Large Storage Unit High-capacity Battery Hardened Light Armor Plating > --- WEAPON ----------- Advanced Beam Cannon Gauss Cannon Rocket Launcher > --- INVENTORY -------- Ion Engine Medium Treads Advanced Terrain Scan Processor Weapon Cycler System Backup Module Improved Trap Extractor Lightning Gun Advanced Beam Cannon Grenade Launcher Remote Datajack [Rating: 21] Favorites ----------- Power Reinforced Ion Engine Engine Reinforced Ion Engine Propulsion Armored Wheel Treads Light Treads Wheel Armored Wheel Utility Large Storage Unit Storage Large Storage Unit Protection Light Armor Plating Weapon Grenade Launcher Energy Gun Small Laser Energy Cannon Advanced Beam Cannon Ballistic Gun Light Assault Rifle Ballistic Cannon Gauss Cannon Launcher Grenade Launcher Build | -11 -10 -10 -9 -9 ------- Run | Scr Mat Min Mat Min Slots Evolved 2 | . . . 2 . Power . | . . . . . Propulsion . | . . . . . Utility 1 | . . . 1 . Weapon 1 | . . . 1 . Parts Attached 22 | 6 1 . 14 1 Power 2 | 1 . . 1 . Engine 2 | 1 . . 1 . Core . | . . . . . Reactor . | . . . . . Propulsion 7 | 2 . . 5 . Treads 2 | . . . 2 . Leg . | . . . . . Wheel 5 | 2 . . 3 . Hover . | . . . . . Flight . | . . . . . Utility 5 | 1 . . 4 . Device . | . . . . . Storage 3 | 1 . . 2 . Processor . | . . . . . Hackware . | . . . . . Protection 2 | . . . 2 . Artifact . | . . . . . Weapon 8 | 2 1 . 4 1 Energy Gun 2 | 1 . . 1 . Energy Cannon 1 | . . . 1 . Ballistic Gun 2 | 1 . . 1 . Ballistic Cannon 1 | . . . . 1 Launcher 2 | . 1 . 1 . Special Weapon . | . . . . . Impact Weapon . | . . . . . Slashing Weapon . | . . . . . Piercing Weapon . | . . . . . Special Melee Weapon . | . . . . . Unidentified Prototypes 2 | . . . 2 . Parts Lost 10 | . . . 2 8 Power 1 | . . . . 1 Propulsion 2 | . . . . 2 Utility 3 | . . . 1 2 Weapon 4 | . . . 1 3 Highest Loss Streak 8 | . . . 1 8 Average Slot Usage (%) 91 | . 85 85 94 77 Engine 11 | . 14 14 11 9 Wheel 21 | . 28 28 21 18 Storage 20 | . 14 14 21 18 Protection 7 | . . . 7 7 Energy Gun 1 | . 6 . 1 . Energy Cannon 3 | . . . 3 7 Ballistic Gun 7 | . 14 14 7 . Launcher 17 | . 8 14 19 8 Naked Turns . | . . . . . Heaviest Build 50 | 11 13 13 46 50 Greatest Support 28 | 26 26 26 28 28 Greatest Overweight (x) 5 | . . . 1 5 Average Overweight (x) . | . . . . 1 Largest Inventory Capacity 12 | 6 6 6 12 10 Average Capacity 9 | 4 6 6 9 10 Most Carried 10 | 3 1 1 10 10 Average Carried 3 | . . 1 3 3 Final Capacity 10 | 6 6 6 10 10 Final Carried 3 | . 1 1 2 3 Class Distribution -------------------- 100% | Mutant Dominant Class ---------------- Mutant | -10/Materials Mutant | -10/Mines Mutant | -9/Materials Mutant | -9/Mines Resources | -11 -10 -10 -9 -9 ----------- Run | Scr Mat Min Mat Min Matter Collected 1261 | 180 . . 905 176 Remotely . | . . . . . Salvage Created 681 | . . . 536 145 Parts 65 | . . . 63 2 Haulers Intercepted 4 | . . . 4 . Recyclers Shooed 1 | . . . . 1 Parts Field Recycled . | . . . . . Retrieved Matter . | . . . . . Parts Self-Destructed . | . . . . . Prevented . | . . . . . Kills | -11 -10 -10 -9 -9 ------- Run | Scr Mat Min Mat Min Combat Hostiles Destroyed 21 | . . . 19 2 Cannons 2 | . . . . 2 AOE 18 | . . . 18 . Classes Destroyed 14 | . . . 12 2 Worker 7 | . . . 7 . Builder 7 | . . . 7 . Tunneler 1 | . . . 1 . Hauler 4 | . . . 4 . Recycler 3 | . . . 1 2 Mechanic 1 | . . . 1 . Operator 1 | . . . 1 . Watcher 2 | . . . 2 . Swarmer 7 | . . . 7 . Grunt 9 | . . . 9 . Brawler 1 | . . . 1 . Sentry 2 | . . . 2 . Demolisher 1 | . . . . 1 Assembled 1 | . . . . 1 Best Kill Streak 13 | . . . 13 4 Combat Bots Only 10 | . . . 10 2 Max Kills in Single Turn 4 | . . . 4 1 Gunslinging . | . . . . . Exploded 4 | . . . 4 . Melee . | . . . . . Uniques/NPCs Destroyed . | . . . . . Combat | -11 -10 -10 -9 -9 -------- Run | Scr Mat Min Mat Min Damage Taken 1455 | . . . 531 924 Core 412 | . . . 137 275 Absorbed by Shields . | . . . . . Core Remaining (%) 100 | 100 . 100 . . Volleys Fired 89 | . . . 78 11 Largest 1 | . . . 1 1 Hottest 48 | . . . 33 48 Shots Fired 89 | . . . 78 11 Gun . | . . . . . Cannon 11 | . . . . 11 Launcher 78 | . . . 78 . Special . | . . . . . Kinetic 11 | . . . . 11 Thermal . | . . . . . Explosive 78 | . . . 78 . Electromagnetic . | . . . . . Robot Hit Streak 8 | . . . 3 8 Robot Miss Streak 4 | . . . 4 2 Penetration Max . | . . . . . Secondary Targets . | . . . . . Shots Hit Robots 25 | . . . 17 8 Core Hits 66 | . . . 61 5 Critical Hits 1 | . . . . 1 Critical Kills . | . . . . . Critical Parts Destroyed 1 | . . . . 1 Melee Attacks . | . . . . . Impact . | . . . . . Slashing . | . . . . . Piercing . | . . . . . Sneak Attacks . | . . . . . Combat Hostiles . | . . . . . Follow-up Attacks . | . . . . . Damage Inflicted 3179 | . . . 2905 274 Guns . | . . . . . Cannons 274 | . . . . 274 Explosions 2886 | . . . 2886 . Melee . | . . . . . Ramming 19 | . . . 19 . Kinetic 274 | . . . . 274 Thermal . | . . . . . Explosive 2886 | . . . 2886 . Electromagnetic . | . . . . . Impact . | . . . . . Slashing . | . . . . . Piercing . | . . . . . Highest Corruption 4 | . . . . 4 Average Corruption 4 | . . . . 4 Corruption Purged . | . . . . . Overload Shots . | . . . . . Overflow Damage 32 | . . . 32 . Projectiles . | . . . . . Explosions 32 | . . . 32 . Melee . | . . . . . Knockbacks 1 | . . . . 1 Impact . | . . . . . Kinetic 1 | . . . . 1 Secondary . | . . . . . Self-Inflicted Damage 196 | . . . 196 . Shots 6 | . . . 6 . Rammed 1 | . . . 1 . Targets Rammed 1 | . . . 1 . Kicked . | . . . . . Crushed . | . . . . . Highest Temperature 100 | . . . 28 100 Average Temperature 18 | . . . 12 32 Received Heat Transfer 197 | . . . 117 80 Siege Activations . | . . . . . Robots Corrupted . | . . . . . Combat Hostiles . | . . . . . Parts Fried . | . . . . . Impact Corruptions . | . . . . . Robots Melted . | . . . . . Combat Hostiles . | . . . . . Parts Melted . | . . . . . Heat Transferred . | . . . . . Parts Sabotaged . | . . . . . Parts Stolen . | . . . . . Parts Stripped . | . . . . . Power Chain Reactions . | . . . . . Missiles Intercepted . | . . . . . Alert | -11 -10 -10 -9 -9 ------- Run | Scr Mat Min Mat Min Peak Influence 589 | . . . 589 254 Initial 229 | . . . . 229 Average 300 | . . . 365 225 Maximum Alert Level 2 | . . . 2 1 Low Security (%) 23 | 100 100 100 11 17 Level 1 42 | . . . 42 82 Level 2 34 | . . . 46 . Level 3 . | . . . . . Level 4 . | . . . . . Level 5 . | . . . . . High Security . | . . . . . Max Security . | . . . . . Squads Dispatched 4 | . 1 . 3 . Investigation . | . . . . . Extermination . | . . . . . Reinforcement 4 | . 1 . 3 . Assault . | . . . . . Garrison . | . . . . . Intercept . | . . . . . Construction Impeded 2 | . . . 2 . Haulers Reinforced . | . . . . . Stealth | -11 -10 -10 -9 -9 --------- Run | Scr Mat Min Mat Min Distress Signals 1 | . . . . 1 Communications Jammed . | . . . . . Distress Signals . | . . . . . Times Spotted 44 | . . . 29 15 Peak Tracking Total 12 | . . . 7 12 Tactical Retreats 1 | . . . 1 . Traps | -11 -10 -10 -9 -9 ------- Run | Scr Mat Min Mat Min Traps Triggered 1 | . . . . 1 Indirectly . | . . . . . Trap Hack Attempts . | . . . . . Triggered . | . . . . . Disarmed . | . . . . . Reprogrammed . | . . . . . Reused . | . . . . . Traps Extracted . | . . . . . Installed . | . . . . . Triggered . | . . . . . Machines | -11 -10 -10 -9 -9 ---------- Run | Scr Mat Min Mat Min Machines Disabled 9 | . . . 9 . Max in Single Turn 1 | . . . 1 . Machines Sabotaged . | . . . . . Garrisons Compromised . | . . . . . Overloaded Fab Kills . | . . . . . Fab Network Shutdowns . | . . . . . Hacking | -11 -10 -10 -9 -9 --------- Run | Scr Mat Min Mat Min Machines Accessed 3 | . . . 2 1 Terminals 2 | . . . 2 . Fabricators . | . . . . . Repair Stations . | . . . . . Recycling Units . | . . . . . Scanalyzers . | . . . . . Garrison Access . | . . . . . Total Hacks 9 | . . . 8 1 Successful 7 | . . . 6 1 Failed 2 | . . . 2 . Catastrophic 1 | . . . 1 . Database Lockouts . | . . . . . Manual . | . . . . . Terminals 8 | . . . 8 . Fabricators . | . . . . . Repair Stations . | . . . . . Recycling Units . | . . . . . Scanalyzers . | . . . . . Garrison Access . | . . . . . Terminal Hacks 7 | . . . 6 1 Record 2 | . . . 2 . Open Door 1 | . . . . 1 Locate Traps 1 | . . . 1 . Dispatch Records 1 | . . . 1 . Maintenance Status 1 | . . . 1 . Patrol Status 1 | . . . 1 . Fabricator Hacks . | . . . . . Repair Station Hacks . | . . . . . Recycling Unit Hacks . | . . . . . Scanalyzer . | . . . . . Garrison Access Hacks . | . . . . . Unauthorized Hacks . | . . . . . Terminals . | . . . . . Fabricators . | . . . . . Repair Stations . | . . . . . Recycling Units . | . . . . . Scanalyzers . | . . . . . Garrison Access . | . . . . . Data Cores Recovered . | . . . . . Used . | . . . . . Hacking Detections . | . . . . . Full Trace Events . | . . . . . Feedback Events . | . . . . . Feedback Blocked . | . . . . . Robot Schematics Acquired . | . . . . . Robots Built . | . . . . . Matter . | . . . . . Time . | . . . . . Total Robot Build Rating . | . . . . . Part Schematics Acquired . | . . . . . Parts Built . | . . . . . Matter . | . . . . . Time . | . . . . . Total Part Build Rating . | . . . . . Parts Repaired . | . . . . . Time . | . . . . . Parts Recycled . | . . . . . Recycled Matter . | . . . . . Retrieved Matter . | . . . . . Retrieved Components . | . . . . . Parts Scanalyzed . | . . . . . Part Schematics Acquired . | . . . . . Parts Damaged . | . . . . . Bothacking | -11 -10 -10 -9 -9 ------------ Run | Scr Mat Min Mat Min Used RIF Installer . | . . . . . Robots Hacked . | . . . . . Non-combat . | . . . . . Combat . | . . . . . Robot Hacks Applied . | . . . . . Relay Couplers Released . | . . . . . Robots Rewired . | . . . . . Allies Hacked . | . . . . . Hacks Repelled . | . . . . . Allies | -11 -10 -10 -9 -9 -------- Run | Scr Mat Min Mat Min Total Allies . | . . . . . Largest Group . | . . . . . Highest-Rated Group . | . . . . . Highest-Rated Ally . | . . . . . Total Orders . | . . . . . Ally Attacks . | . . . . . Total Damage . | . . . . . Kills . | . . . . . Allies Corrupted . | . . . . . Allies Melted . | . . . . . Intel | -11 -10 -10 -9 -9 ------- Run | Scr Mat Min Mat Min Robot Analysis Total . | . . . . . Derelict Logs Recovered . | . . . . . Drone Launches . | . . . . . Drone Recoveries . | . . . . . Exploration | -11 -10 -10 -9 -9 ------------- Run | Scr Mat Min Mat Min Turns Passed 1077 | 55 66 14 796 146 Spaces Moved 830 | 53 71 16 601 89 Core 19 | 10 . . . 9 Treads . | . . . . . Legs . | . . . . . Wheels 811 | 43 71 16 601 80 Hover . | . . . . . Flight . | . . . . . Fastest Speed 50 | 50 90 90 90 105 Average Speed 98 | 82 90 90 97 126 Slowest Speed 300 | 90 90 90 105 300 Overloaded Moves . | . . . . . Propulsion Burnouts . | . . . . . Robots Hopped . | . . . . . Cave-ins Triggered . | . . . . . Exploration Rate (%) 18 | 3 19 8 33 28 Regions Visited 4 Branch Regions 2 Pre-discovered Areas . | . . . . . Known Exits Taken . | . . . . . Unknown Exits Taken 4 | 1 1 1 1 . Scrap Searched . | . . . . . Spaces Dug 17 | . . . 17 . Terrain Destroyed 353 | . . . 349 4 Melee . | . . . . . Projectile 4 | . . . . 4 AOE 349 | . . . 349 . Terrain Rammed . | . . . . . Walls Destroyed . | . . . . . Machines Disabled . | . . . . . Actions | -11 -10 -10 -9 -9 --------- Run | Scr Mat Min Mat Min Total 1008 | 64 72 15 741 116 Wait . | . . . . . Move 826 | 52 70 15 600 89 Hop . | . . . . . Pick Up 42 | 6 1 . 27 8 Fast Attach . | . . . . . Attach 12 | 6 . . 6 . Detach . | . . . . . Swap 10 | . 1 . 8 1 Drop 28 | . . . 21 7 Fire 89 | . . . 78 11 Melee . | . . . . . Ram 1 | . . . 1 . Kick . | . . . . . Crush . | . . . . . Escape Stasis . | . . . . . Rewire . | . . . . . Trap . | . . . . . Miscellaneous . | . . . . . Route ------- -11/Scrapyard -10/Materials -10/Mines -9/Materials -9/Mines History --------- Turn | Location | Event 23 | -11/Scrapyard | Discovered new exit (range 14) 56 | -11/Scrapyard | Entered Materials 118 | -10/Materials | Discovered new exit (range 6) 122 | -10/Materials | Entered Mines 131 | -10/Mines | Discovered new exit (range 9) 136 | -10/Mines | Entered Materials 136 | -9/Materials | Evolved 2 slots: Utility x1, Weapon x1 247 | -9/Materials | Destroyed 10 combat bots 306 | -9/Materials | Build established: Mutant 847 | -9/Materials | Discovered new exit (range 15) 932 | -9/Materials | Entered Mines 942 | -9/Mines | Met a Derelict who couldn't figure out how to use a Trap Extractor 985 | -9/Mines | Assembled infested the area 1037 | -9/Mines | Core integrity fell below 50% 1063 | -9/Mines | Core integrity fell below 20% 1078 | -9/Mines | Destroyed by as-88584 with Assembled Heavy Rifle Last Messages --------------- K-01 Serf collects debris. Arm. Wheel destroyed. Acquired 43 matter. U-05 Engineer knocked back. K-01 Serf collects debris. as-68727 sneak attacks. K-01 Serf system corrupted by crushing effect. as-31328 sneak attacks. K-01 Serf destroyed. U-05 Engineer destroyed. Knocked back. Com. Wheel destroyed. Gauss Cannon destroyed. Rnf. Ion Engine destroyed. System corrupted by crushing effect (+3). System corrupted by crushing effect (+1). The unstable cave ceiling collapses. U-05 Engineer destroyed. The unstable cave ceiling collapses. Knocked back. Map ----- +----------------------------------------------------+ | | | | | | | | | | | | | | | | | | | | | | | | | | | ?????????????????????????????????????????????????? | | ???????????????????????####??????????????????????? | | ##########??????????#### ##??###????????????????? | | ##????????## ## ##???????????????? | | X ###??????# ##??????????????? | | ]= ##?????# = #??????????????? | | !]! #????## ### #?????????????? | | [# #????# ##?# ## #????????? | | "## ##???##! #??#a#??## #????????? | | ## ##???##*% #??#a#?????? ## ?????????? | | # ### #???## ##??#a#??????????????????????? | | # ##?# #??## #???#a#??????????????????????? | | #### #### #???#@#??????????????????????? | | # # # =#???# #??????????????????????? | | !=* ## #" %##??# #??????????????????????? | | ! ! # =#??# #??????????????????????? | | ##### # #% #??# #??????????????????????? | | #????### # # # %#??# #??????????????????????? | | ?????# % #?# #??????????????????????? | | ?????# # # # #?# #??????????????????????? | | ?????# # % %%= # #?# ??????????????????????? | | ?????## ! ### #??##??????????????????????? | | ????? ##?? #??????????????????????????? | | ???# % ###??? #??????????????????????????? | | ??? #?????%!#??????????????????????????? | | ?? #????? #??????????????????????????? | | ?# #????? ??????????????????????????? | | ?## ????? ??????????????????????????? | | ??## # ????? ??????????????????????????? | | ???# ????? ??????????????????????????? | | ???#" # " ????? ???????????????????????????? | | ?????? ## #? ??????????????????????????????????? | | ??????????#??????????????????????????????????????? | | ?????????????????????????????????????????????????? | | ?????????????????????????????????????????????????? | | ?????????????????????????????????????????????????? | | ?????????????????????????????????????????????????? | +----------------------------------------------------+ Best States ------------- Heat Dissipation 28 Energy Generation 12 Energy Capacity 665 Matter Stores 300 Matter Capacity 300 Sight Range 16 Terrain Scan Density 10 Armor Coverage 150 Evasion (%) 42 Recoil Reduction 1 Item Schematics ----------------- None Robot Schematics ------------------ None Fabricated ------------ Nothing Alien Tech Used ----------------- None Achievements -------------- None Challenges ------------ None Game ------ Seed PhasingHugeRay Manual? 0 Play Time 00:18:07 Cumulative 1.9 hours Start 2020.11.06 @ 20:47:42 End 2020.11.06 @ 21:05:34 Sessions 1 Manual Loads 0 Difficulty Rogue Special Mode None Game No. 3 Rogue 3 Adventurer 0 Explorer 0 Win Type - Total 0 Types 0/0/0/0/0/0/0/0/0 Lore% 4 Gallery% 5 Achievement% 4 Wizard Run 0 Options --------- ASCII 0 Keyboard 0 Movement Arrows Keybinds 0 Fullscreen 1 Font 18/SmallcapsGlow Map View 76x50 Tactical HUD 0 Map Filters NONE Filters NONE Steam 1 RUN: 9a1e2b52-df74-44a9-944f-c892ae7e6a8c